bitfinex-derivatives/quotes_ETHF0:USTF0_20250624
["timestamp","ask_amount","ask_price","bid_price","bid_amount"]
[1750726861972,0.83234,2401.3,2401.1,3.2078]
[1750726862173,0.83231,2401.4,2401.1,3.2078]
[1750726862374,0.83231,2401.4,2401.1,4.04018]
[1750726862675,0.83234,2401.3,2401.1,4.04018]
[1750726862870,3.2078,2401.3,2401.1,7.044]
[1750726863064,2.19557,2401.2,2401.1,7.044]
[1750726863667,2.19557,2401.2,2400.8,3.2078]
[1750726863668,1.3632,2401.2,2400.8,3.2078]
[1750726863869,0.83241,2401.1,2400.8,4.04029]
[1750726864066,0.83253,2400.8,2400.4,0.83262]
[1750726864270,3.2078,2400.9,2400.3,11.71088723]
[1750726864468,3.2078,2400.9,2400.3,33.255]
[1750726864666,4.04029,2400.9,2400.6,0.83257]
[1750726864867,3.2078,2400.9,2400.8,0.83251]
[1750726865067,3.2078,2400.9,2400.5,0.8326]
[1750726865268,3.2078,2400.9,2400.4,4.5369]
[1750726865269,0.83254,2400.7,2400.4,2.16173]
[1750726865464,4.04041,2400.6,2400.5,7.045]
[1750726865665,0.83267,2400.4,2400.2,0.7591]
[1750726865862,1.4039,2400.5,2400.1,10.2528]
[1750726866075,4.0405,2400.3,2400.1,7.045]
[1750726866572,0.83272,2400.2,2400.1,7.045]
[1750726866766,1.4039,2400.2,2399.9,7.045]
[1750726866973,0.83277,2400.1,2399.9,7.045]
[1750726867174,0.83279,2400.0,2399.9,7.045]
[1750726867672,0.83285,2399.9,2399.7,47.958]
[1750726867873,4.0406,2400.0,2399.7,55.003]
[1750726868274,3.2078,2400.0,2399.7,55.003]
[1750726868570,2.99833,2400.2,2399.8,0.83285]
[1750726868769,2.1656,2400.2,2399.7,55.003]
[1750726868966,3.2078,2400.3,2400.0,0.83277]
[1750726869171,3.2078,2400.3,2400.1,0.83274]
[1750726869368,4.04048,2400.3,2399.8,1.4172]
[1750726869576,3.2078,2400.3,2400.0,0.83277]
[1750726869774,4.0405,2400.3,2400.0,0.83277]
[1750726870075,4.0405,2400.3,2399.9,0.8328]
[1750726870464,3.2078,2400.3,2399.8,1.4172]
[1750726870865,3.2078,2400.3,2400.0,0.83277]
[1750726871070,3.2078,2400.3,2399.7,55.003]
[1750726871275,2.1906,2400.2,2399.8,7.047]
[1750726871478,0.83283,2399.9,2399.8,7.047]
[1750726871778,0.83286,2399.8,2399.7,55.005]
[1750726871972,0.83286,2399.8,2399.7,7.047]
[1750726872375,0.83307,2399.2,2398.8,0.83318]
[1750726872576,3.2078,2399.3,2399.0,0.83313]
[1750726872784,3.2078,2399.3,2398.7,6.01058723]
[1750726873074,3.2078,2399.3,2398.7,6.84379723]
[1750726873381,3.2078,2399.3,2398.7,6.84380723]
[1750726873775,0.83315,2399.0,2398.7,1.3447]
[1750726873979,0.83319,2398.9,2398.8,7.047]
[1750726874681,0.83319,2398.9,2398.5,2.43079]
[1750726874982,4.04094,2399.0,2398.7,0.83322]
[1750726875182,3.2078,2399.0,2398.5,3.0054]
[1750726875482,3.2078,2399.0,2398.6,7.049]
[1750726875682,4.04095,2399.0,2398.7,0.83323]
[1750726875983,3.2078,2399.0,2398.8,0.83319]
[1750726876376,3.2078,2399.0,2398.7,0.83322]
[1750726876579,3.2078,2399.0,2398.8,0.8332]
[1750726876780,0.83312,2399.1,2398.7,0.83322]
[1750726876979,3.2078,2399.4,2398.7,4.66588723]
[1750726877281,3.2078,2399.4,2398.8,1.4206]
[1750726877477,0.83317,2398.9,2398.8,1.4206]
[1750726877681,0.83321,2398.8,2398.6,7.049]
[1750726877881,0.83324,2398.7,2398.5,8.6465]
[1750726878091,0.83348,2398.1,2397.4,10.2578]
[1750726878280,3.2078,2398.0,2397.7,0.83357]
[1750726878584,3.2078,2398.0,2397.8,7.05]
[1750726879282,3.2078,2398.1,2397.8,7.05]
[1750726879682,4.0218,2398.7,2397.9,5.41578723]
[1750726879883,4.85506,2398.7,2398.3,0.83335]
[1750726880083,4.0218,2398.7,2398.3,0.83335]
[1750726880284,4.0218,2398.7,2398.4,0.83332]
[1750726880786,3.2078,2398.7,2398.6,0.83327]
[1750726880978,3.2078,2398.7,2398.3,2.1615]
[1750726881878,1.3603,2398.9,2397.8,55.021]
[1750726881879,3.2078,2398.4,2397.8,55.021]
[1750726882084,3.2078,2398.1,2397.8,55.021]
[1750726882387,3.2078,2398.1,2397.8,11.69288723]
[1750726882785,3.2078,2398.1,2397.8,7.027]
[1750726882786,4.04127,2398.1,2397.8,7.027]
[1750726882986,0.8335,2398.0,2397.8,7.027]
[1750726883287,3.2078,2398.1,2397.4,0.83366]
[1750726883483,0.83352,2397.9,2397.5,0.83363]
[1750726883688,0.83355,2397.8,2397.5,0.83363]
[1750726883988,4.04135,2397.8,2397.4,2.28437]
[1750726884288,4.04135,2397.8,2397.4,1.4507]
[1750726884489,0.83359,2397.7,2397.4,2.28437]
[1750726884690,3.2078,2397.8,2397.4,1.4507]
[1750726884989,4.04137,2397.8,2397.4,2.28437]
[1750726885186,0.83354,2397.9,2397.4,1.4507]
[1750726885386,2.26861,2398.0,2397.6,0.83361]
[1750726885684,3.2078,2398.1,2397.5,7.029]
[1750726885985,3.2078,2398.1,2397.2,4.66588723]
[1750726886188,0.83351,2398.0,2397.6,0.83361]
[1750726886385,0.83352,2397.9,2397.7,7.029]
[1750726886585,0.8335,2398.0,2397.7,7.86258]
[1750726886790,3.2078,2398.1,2397.7,7.029]
[1750726886791,0.83352,2397.9,2397.7,7.029]
[1750726886991,4.04135,2397.8,2397.7,7.029]
[1750726887492,3.2078,2397.8,2397.7,7.029]
[1750726888489,0.83347,2398.1,2397.7,7.86258]
[1750726888689,0.83348,2398.0,2397.7,7.029]
[1750726889089,3.2078,2398.2,2397.5,1.62293]
[1750726889289,0.83357,2397.8,2397.6,7.03]
[1750726889489,0.8335,2398.0,2397.7,7.03]
[1750726889690,3.2078,2398.2,2397.7,7.03]
[1750726889890,4.04122,2398.2,2397.7,8.4871]
[1750726890091,3.2078,2398.2,2397.7,8.4871]
[1750726890493,4.04123,2398.2,2397.8,1.4571]
[1750726890786,4.04123,2398.2,2397.8,2.29063]
[1750726890987,3.2078,2398.2,2397.7,7.03]
[1750726891296,1.4291,2398.1,2397.5,0.7893]
[1750726891797,2.26257,2398.1,2397.7,0.83356]
[1750726892090,2.26257,2398.1,2397.5,0.7893]
[1750726892289,2.26257,2398.1,2397.8,7.03]
[1750726892495,1.4291,2398.1,2397.8,7.86354]
[1750726892795,2.26256,2398.1,2397.8,7.86353]
[1750726892983,1.4291,2398.1,2397.9,0.83352]
[1750726893184,2.26257,2398.1,2398.0,7.031]
[1750726894984,1.4291,2398.1,2398.0,7.031]
[1750726895188,3.2078,2398.2,2398.1,0.83345]
[1750726895595,3.2078,2398.2,2398.1,1.61015]
[1750726895888,3.2078,2398.5,2398.4,0.83334]
[1750726896094,3.2078,2398.5,2398.4,7.031]
[1750726896592,4.04111,2398.5,2398.4,7.031]
[1750726896988,3.2078,2398.5,2398.4,7.031]
[1750726897992,4.04111,2398.5,2398.4,7.031]
[1750726898696,6.43106385,2398.5,2398.4,7.031]
[1750726899604,4.22585385,2398.5,2398.4,7.031]
[1750726899793,4.22585385,2398.5,2398.4,7.86434]
[1750726900090,4.22585385,2398.5,2398.4,7.031]
[1750726900290,4.22585385,2398.5,2398.4,7.86434]
[1750726901092,4.22585385,2398.5,2398.4,7.031]
[1750726901297,5.05916385,2398.5,2398.4,7.031]
[1750726901590,4.22585385,2398.5,2398.4,7.031]
[1750726901895,5.05916385,2398.5,2398.4,7.031]
[1750726902692,4.22585385,2398.5,2398.4,7.031]
[1750726903596,4.22585385,2398.5,2398.4,7.86434]
[1750726904300,5.05916385,2398.5,2398.4,7.031]
[1750726904601,4.22585385,2398.5,2398.4,6.62462583]
[1750726906500,5.05916385,2398.5,2398.4,6.62462583]
[1750726908098,4.22585385,2398.5,2398.4,6.62462583]
[1750726908798,4.22585385,2398.5,2398.4,7.45796583]
[1750726911309,0.7521,2398.9,2398.7,0.83322]
[1750726911503,0.7521,2398.9,2398.5,0.7806]
[1750726911805,4.04106,2398.7,2398.6,7.03]
[1750726912209,4.04106,2398.7,2398.5,0.7806]
[1750726912409,4.04106,2398.7,2398.6,7.024]
[1750726912904,3.2078,2398.7,2398.6,7.024]
[1750726913208,3.2078,2398.7,2398.6,7.85727]
[1750726913903,3.2078,2398.7,2398.6,1.64707]
[1750726914207,4.04104,2398.7,2398.6,7.024]
[1750726915007,3.2078,2398.7,2398.6,7.85727]
[1750726915199,3.2078,2398.7,2398.6,7.024]
[1750726915507,4.04104,2398.7,2398.6,7.024]
[1750726915900,0.83329,2398.6,2398.3,0.8138]
[1750726916201,4.04105,2398.7,2398.4,0.83333]
[1750726916395,1.4041,2398.6,2398.4,7.85733]
[1750726917307,1.4041,2398.6,2398.4,7.85732]
[1750726917710,3.2078,2398.7,2398.6,0.83327]
[1750726919602,0.7521,2398.9,2398.8,0.8332]
[1750726919802,0.7521,2398.9,2398.8,7.8562]
[1750726920303,4.5227,2399.0,2398.8,7.8562]
[1750726920304,4.5227,2399.0,2398.9,0.83317]
[1750726920907,0.83317,2398.9,2398.8,7.023]
[1750726921111,2.28557,2398.9,2398.8,7.023]
[1750726922302,0.83322,2398.8,2398.5,0.8333]
[1750726922609,4.6602,2398.7,2398.6,7.023]
[1750726923007,0.83329,2398.6,2398.5,7.023]
[1750726923206,4.06829352,2398.6,2398.5,7.023]
[1750726923401,0.83331,2398.5,2398.2,48.85739]
[1750726923607,1.01472531,2398.4,2398.2,48.85739]
[1750726923809,2.26041,2398.5,2398.2,48.024]
[1750726924011,1.0147287,2398.4,2398.3,7.023]
[1750726924611,4.2225287,2398.4,2397.9,7.023]
[1750726924818,4.04127,2398.1,2397.8,7.023]
[1750726925111,3.26039767,2398.0,2397.8,7.023]
[1750726925311,0.8184,2398.0,2397.8,7.023]
[1750726925515,0.8184,2398.0,2397.9,0.83352]
[1750726925908,0.8203,2398.3,2398.0,0.83346]
[1750726926110,2.38455294,2398.2,2398.0,0.83346]
[1750726926401,1.3697,2398.2,2398.0,0.83346]
[1750726926807,1.01501124,2398.1,2398.0,0.83346]
[1750726927012,1.3697,2398.2,2398.0,0.83346]
[1750726927214,1.3697,2398.2,2398.1,0.83345]
[1750726927408,1.01496848,2398.2,2398.1,0.83345]
[1750726927610,5.6899864,2399.0,2398.1,8.2078]
[1750726927810,3.2078,2399.0,2398.6,4.66588723]
[1750726928009,3.2078,2399.0,2398.9,0.83317]
[1750726928508,5.41051,2399.4,2398.7,40.1269]
[1750726928709,4.5775,2399.4,2399.2,0.83304]
[1750726929010,5.4105,2399.4,2399.3,7.024]
[1750726929207,4.5775,2399.4,2399.3,7.024]
[1750726929409,4.5775,2399.4,2399.3,7.85703]
[1750726929623,4.5775,2399.4,2399.3,7.024]
[1750726930718,4.5775,2399.4,2399.3,7.85703]
[1750726930915,4.5775,2399.4,2399.3,7.024]
[1750726931617,4.5775,2399.4,2399.3,7.85703]
[1750726932019,5.41051,2399.4,2399.2,7.023]
[1750726932823,4.5775,2399.4,2399.2,7.85606]
[1750726933024,4.5775,2399.4,2398.7,8.0078]
[1750726933328,9.24338723,2399.4,2398.8,7.023]
[1750726933620,0.83305,2399.3,2398.9,0.83314]
[1750726933828,1.3729,2399.2,2398.9,0.83315]
[1750726934121,2.1607,2399.2,2398.8,7.023]
[1750726934324,3.2078,2399.1,2398.8,7.023]
[1750726934528,2.92654,2399.0,2398.8,7.023]
[1750726934824,2.0934,2399.0,2398.8,7.8562]
[1750726935123,2.0934,2399.0,2398.9,0.83317]
[1750726935625,2.0934,2399.0,2398.9,7.022]
[1750726936324,2.0934,2399.0,2398.9,7.85517]
[1750726936524,3.2078,2399.1,2399.0,0.83313]
[1750726936713,0.7878,2399.2,2399.0,0.83313]
[1750726937023,3.9956,2399.2,2399.0,0.83313]
[1750726937722,3.9956,2399.2,2399.1,0.8331]
[1750726938022,5.3529,2399.5,2399.1,0.8331]
[1750726938217,0.83301,2399.4,2399.1,0.8331]
[1750726938420,2.15601,2399.4,2399.1,0.8331]
[1750726938617,1.323,2399.4,2398.9,7.7889]
[1750726938823,0.83304,2399.3,2399.0,0.83312]
[1750726939124,2.15602,2399.4,2399.1,7.022]
[1750726939419,2.15602,2399.4,2399.1,7.8551]
[1750726939819,1.323,2399.4,2399.1,7.8551]
[1750726940118,2.156,2399.4,2399.1,7.022]
[1750726940521,3.2078,2399.2,2398.8,0.7316]
[1750726940722,0.83313,2399.0,2398.9,7.022]
[1750726941122,1.427,2399.0,2398.9,7.022]
[1750726941823,1.427,2399.0,2398.9,7.85517]
[1750726942019,0.7536,2399.1,2398.9,7.85517]
[1750726942217,0.7536,2399.1,2398.9,7.85516]
[1750726942418,3.01371,2399.1,2398.9,7.022]
[1750726942718,2.1806,2399.1,2398.9,7.85516]
[1750726943115,2.1806,2399.1,2399.0,0.83313]
[1750726943726,0.7536,2399.1,2399.0,0.83313]
[1750726944326,1.427,2399.4,2398.9,7.85516]
[1750726944327,4.04087,2399.2,2398.9,7.85516]
[1750726944633,0.83313,2399.0,2398.9,7.022]
[1750726944927,2.17842,2399.1,2398.9,7.022]
[1750726945222,1.3453,2399.1,2398.9,7.85517]
[1750726945426,2.1784,2399.1,2398.9,7.022]
[1750726945627,1.3453,2399.1,2398.9,7.85516]
[1750726946027,4.04088,2399.2,2399.0,0.83313]
[1750726946028,3.2078,2399.2,2399.0,0.83313]
[1750726946825,4.04086,2399.2,2398.9,7.85515]
[1750726947025,3.2078,2399.2,2399.1,0.8331]
[1750726947221,3.2078,2399.2,2399.0,2.40563]
[1750726947430,4.04088,2399.2,2399.0,0.7956]
[1750726947729,5.44578,2399.2,2399.0,0.7956]
[1750726948120,4.6127,2399.2,2399.0,1.62873]
[1750726948324,5.44577,2399.2,2399.0,0.7956]
[1750726949132,1.4049,2399.2,2399.0,1.62872]
[1750726949431,2.23797,2399.2,2399.0,1.62872]
[1750726949728,1.4049,2399.2,2399.0,1.62872]
[1750726951229,2.23796,2399.2,2399.1,7.008]
[1750726951430,3.24712078,2399.2,2399.1,7.008]
[1750726951631,2.23796,2399.2,2399.1,7.008]
[1750726951932,3.24715669,2399.2,2399.1,7.008]
[1750726952132,2.23796,2399.2,2399.1,7.008]
[1750726952327,3.247074,2399.2,2399.1,7.008]
[1750726953026,0.83311,2399.1,2398.8,0.83318]
[1750726953228,1.3181,2399.1,2398.9,7.008]
[1750726953433,2.1512,2399.1,2398.9,7.008]
[1750726953828,1.3181,2399.1,2398.9,7.84116]
[1750726954642,1.3181,2399.1,2399.0,0.83313]
[1750726955034,1.3181,2399.1,2398.9,7.84115]
[1750726955936,3.9582,2399.5,2399.0,4.66588723]
[1750726956129,1.01114775,2399.4,2399.0,4.66588723]
[1750726956325,4.79116,2399.5,2399.2,0.83304]
[1750726956536,1.01184298,2399.4,2399.3,7.007]
[1750726958038,3.17057298,2399.4,2399.3,7.007]
[1750726959954,3.17057298,2399.4,2399.0,0.83311]
[1750726960247,3.2078,2399.2,2399.1,7.007]
[1750726960453,4.21964298,2399.2,2399.1,7.007]
[1750726960752,5.58254298,2399.2,2399.1,7.007]
[1750726961951,5.58254298,2399.2,2399.1,7.8401]
[1750726962257,1.01184298,2399.2,2399.1,7.8401]
[1750726962555,2.1133,2399.5,2399.2,0.83303]
[1750726962751,1.01176347,2399.4,2399.2,0.83303]
[1750726962952,1.01176347,2399.3,2399.1,7.84008]
[1750726963157,1.01176347,2399.2,2399.1,7.84008]
[1750726963956,2.94628,2399.5,2399.2,0.83305]
[1750726964261,1.84461886,2399.4,2399.1,7.84008]
[1750726964561,1.01159886,2399.3,2399.1,7.84008]
[1750726964862,1.01159886,2399.3,2399.2,0.83306]
[1750726965053,1.01159886,2399.3,2399.1,7.84008]
[1750726965249,1.84462886,2399.3,2399.1,7.84008]
[1750726965460,1.01159886,2399.2,2399.1,7.84008]
[1750726965660,1.01159886,2399.2,2399.1,7.007]
[1750726966260,1.01159886,2399.2,2399.1,7.8401]
[1750726966661,1.01159886,2399.2,2399.1,7.007]
[1750726967862,1.84465886,2399.2,2399.1,7.007]
[1750726968052,1.84465886,2399.2,2398.8,2.48913796]
[1750726968053,0.8331,2399.1,2398.8,2.48913796]
[1750726968255,0.8331,2399.1,2398.9,7.007]
[1750726968458,1.6056,2399.1,2398.9,7.84016]
[1750726968664,0.7725,2399.1,2398.9,7.84016]
[1750726968866,0.7725,2399.1,2399.0,0.83313]
[1750726969167,3.2078,2399.3,2399.1,0.83308]
[1750726969468,1.01191064,2399.2,2398.9,10.84450209]
[1750726969658,0.83307,2399.2,2399.0,0.83311]
[1750726970266,4.6389,2399.3,2398.9,2.47620209]
[1750726970469,3.27591699,2399.2,2399.1,7.007]
[1750726972268,2.44285699,2399.2,2399.1,7.007]
[1750726972768,3.27591699,2399.2,2399.1,7.007]
[1750726975966,7.44285699,2399.2,2398.5,4.15162291]
[1750726976167,5.68400209,2398.9,2398.4,10.1958]
[1750726976469,0.83326,2398.7,2398.4,11.02913]
[1750726976668,1.455,2398.6,2398.4,11.02913]
[1750726977670,1.455,2398.6,2398.5,0.83331]
[1750726978067,1.455,2398.6,2398.4,13.50532209]
[1750726978368,2.28828,2398.6,2398.4,12.67200209]
[1750726978568,3.2078,2398.9,2398.4,12.67200209]
[1750726978767,1.84338601,2398.8,2398.6,2.47620209]
[1750726978966,1.01016601,2398.7,2398.6,2.47620209]
[1750726980174,4.04099,2398.9,2398.6,2.47620209]
[1750726980377,1.00996114,2398.8,2398.6,2.47620209]
[1750726980573,0.83323,2398.8,2398.6,2.47620209]
[1750726980762,5.43388,2398.9,2398.6,3.30946209]
[1750726980967,1.01015131,2398.8,2398.6,3.30946209]
[1750726981267,5.43388,2398.9,2398.6,2.47620209]
[1750726981469,1.84337825,2398.8,2398.6,2.47620209]
[1750726981773,5.43389,2398.9,2398.6,2.47620209]
[1750726981972,1.01000927,2398.8,2398.6,2.47620209]
[1750726982174,5.43389,2398.9,2398.6,2.47620209]
[1750726982372,1.84321067,2398.8,2398.6,2.47620209]
[1750726982669,0.83324,2398.7,2398.6,2.47620209]
[1750726982870,0.83323,2398.8,2398.6,2.47620209]
[1750726983571,0.83324,2398.7,2398.6,2.47620209]
[1750726984177,0.83323,2398.8,2398.4,36.44352209]
[1750726984371,0.83323,2398.8,2398.5,0.8333]
[1750726984876,4.6007,2398.9,2398.6,2.47620209]
[1750726985078,3.2078,2398.9,2398.7,0.83321]
[1750726985373,0.83317,2398.9,2398.8,6.988]
[1750726985571,1.84234409,2398.9,2398.8,6.988]
[1750726986079,5.05014409,2398.9,2398.8,6.988]
[1750726986270,7.26914409,2398.9,2398.8,6.988]
[1750726987975,6.43597409,2398.9,2398.6,6.989]
[1750726988180,0.83324,2398.7,2398.6,6.989]
[1750726988378,2.1595,2398.8,2398.6,6.989]
[1750726988682,0.7496,2399.0,2398.6,9.46520209]
[1750726988876,1.84264419,2398.9,2398.8,2.47620209]
[1750726989088,0.83324,2398.7,2398.6,6.989]
[1750726990984,5.0,2398.7,2398.2,55.01]
[1750726991178,0.83338,2398.3,2398.2,55.01]
[1750726991379,4.04118,2398.3,2398.2,55.01]
[1750726991580,0.83345,2398.1,2398.0,6.989]
[1750726992084,3.02823,2398.2,2398.0,6.989]
[1750726992285,3.2078,2398.3,2398.0,35.59720209]
[1750726992487,1.5441,2398.6,2398.2,2.47620209]
[1750726992679,0.83331,2398.5,2398.4,2.47620209]
[1750726992886,0.83331,2398.5,2398.4,9.46520209]
[1750726993179,0.83331,2398.5,2398.4,6.989]
[1750726993389,0.83338,2398.3,2398.2,6.989]
[1750726994386,0.83338,2398.3,2397.8,2.47620209]
[1750726994387,2.3683936,2398.3,2397.8,2.47620209]
[1750726994686,0.83352,2398.0,2397.9,6.989]
[1750726995184,2.19492,2398.0,2397.9,6.989]
[1750726995387,0.83355,2397.8,2397.7,6.989]
[1750726995783,4.04135,2397.8,2397.7,6.989]
[1750726995987,0.83365,2397.5,2397.4,6.989]
[1750726996186,2.2216,2397.7,2397.4,9.46520209]
[1750726996382,0.83351,2398.0,2397.6,2.47620209]
[1750726996588,0.83352,2397.9,2397.6,2.47620209]
[1750726996787,0.83352,2397.9,2397.8,2.47620209]
[1750726998590,0.83356,2397.8,2397.6,3.96410209]
[1750726999091,0.83353,2397.9,2397.6,3.96410209]
[1750726999492,0.83355,2397.8,2397.6,3.96410209]
[1750726999890,0.83353,2397.9,2397.6,3.96410209]
[1750727000292,0.83355,2397.8,2397.6,3.96410209]
[1750727000985,1.3167,2398.0,2397.3,53.69800209]
[1750727001187,1.3167,2398.0,2397.4,6.99]
[1750727001388,1.3167,2398.0,2397.5,2.47620209]
[1750727001588,0.83355,2397.8,2397.5,3.30984209]
[1750727001794,0.83355,2397.8,2397.6,0.8103]
[1750727002595,3.2078,2398.2,2398.0,0.83348]
[1750727002790,3.2078,2398.5,2398.0,6.99]
[1750727002981,0.83345,2398.1,2398.0,6.99]
[1750727003189,3.2078,2398.2,2398.0,6.99]
[1750727003494,4.04121,2398.2,2398.0,6.99]
[1750727004091,1.647,2398.3,2398.0,7.82347]
[1750727004291,1.647,2398.3,2398.0,6.99]
[1750727004495,0.83345,2398.1,2398.0,6.99]
[1750727005193,0.83348,2398.0,2397.9,6.991]
[1750727005589,2.18936,2398.1,2397.9,6.991]
[1750727005783,0.83348,2398.0,2397.9,6.991]
[1750727005990,2.18938,2398.0,2397.9,6.991]
[1750727006188,3.2025741,2398.0,2397.9,6.991]
[1750727007195,0.83355,2397.8,2397.6,7.7793]
[1750727008094,2.20655,2397.8,2397.6,7.7793]
[1750727008293,0.83355,2397.8,2397.6,7.7793]
[1750727008499,0.83359,2397.7,2397.6,7.7793]
[1750727008695,0.83359,2397.7,2397.6,6.969]
[1750727010397,0.83365,2397.5,2397.4,0.7518]
[1750727010599,0.83365,2397.5,2397.3,58.1908]
[1750727010795,0.83369,2397.4,2397.3,58.1908]
[1750727010997,0.83369,2397.4,2397.3,3.2078]
[1750727011200,0.83378,2397.2,2397.0,10.1768]
[1750727011395,3.24730209,2397.5,2397.0,10.1768]
[1750727011396,0.83379,2397.1,2397.0,10.1768]
[1750727013299,5.83379,2397.1,2397.0,3.2078]
[1750727013503,0.83379,2397.1,2397.0,3.2078]
[1750727014103,3.00468,2397.2,2397.0,3.2078]
[1750727014304,0.83379,2397.1,2397.0,3.2078]
[1750727014505,2.1709,2397.2,2397.0,3.2078]
[1750727014705,0.83377,2397.2,2397.0,3.2078]
[1750727015001,0.83374,2397.3,2397.0,3.2078]
[1750727015400,0.83374,2397.3,2397.0,0.83383]
[1750727015600,0.83374,2397.3,2396.9,4.10365209]
[1750727015906,0.83374,2397.3,2396.9,3.26980209]
[1750727015907,0.83376,2397.2,2396.9,3.26980209]
[1750727016410,0.83381,2397.1,2396.9,2.47620209]
[1750727017203,2.26668,2397.2,2396.9,2.47620209]
[1750727017397,1.4329,2397.2,2396.9,3.31005209]
[1750727017604,2.26667,2397.2,2396.9,3.31005209]
[1750727017803,3.2078,2397.3,2396.9,2.47620209]
[1750727018099,0.7711,2397.5,2397.2,0.83375]
[1750727018301,1.60477,2397.5,2397.3,2.47620209]
[1750727018503,0.83369,2397.4,2397.3,2.47620209]
[1750727018704,0.83372,2397.3,2397.2,0.7681]
[1750727018904,0.7711,2397.5,2397.2,3.24430209]
[1750727019111,0.83369,2397.4,2397.2,3.24430209]
[1750727019612,1.60477,2397.5,2397.2,4.07804209]
[1750727020011,0.83369,2397.4,2397.2,3.24430209]
[1750727020705,1.60477,2397.5,2397.2,3.24430209]
[1750727020912,0.83372,2397.3,2397.2,3.24430209]
[1750727021710,0.7711,2397.5,2397.2,3.24430209]
[1750727021909,4.04144,2397.6,2397.2,4.07805209]
[1750727022214,4.04144,2397.6,2397.3,0.83371]
[1750727022413,4.04144,2397.6,2397.3,1.3812]
[1750727022810,3.2078,2397.6,2397.4,3.30989209]
[1750727023405,3.2078,2397.6,2397.4,2.47620209]
[1750727023609,3.2078,2397.6,2397.4,3.30987209]
[1750727023806,0.7687,2398.2,2397.5,6.971]
[1750727024007,3.2078,2398.3,2397.7,3.2078]
[1750727024215,0.8335,2398.0,2397.8,6.971]
[1750727024514,1.4365,2398.2,2397.9,3.30971209]
[1750727024710,0.83343,2398.2,2397.9,3.30971209]
[1750727024911,0.83343,2398.2,2398.0,0.7759]
[1750727025312,4.04119,2398.3,2398.0,1.60938]
[1750727026116,3.2078,2398.3,2398.1,3.30963209]
[1750727026307,3.2078,2398.7,2398.6,0.83327]
[1750727026513,3.2078,2398.7,2398.6,10.27947209]
[1750727026916,3.2078,2398.7,2398.6,9.44620209]
[1750727027118,3.2078,2398.7,2398.6,6.97]
[1750727027713,4.04107,2398.7,2398.6,6.97]
[1750727028520,5.05599525,2398.7,2398.6,6.969]
[1750727028713,4.22275525,2398.7,2398.2,3.28970209]
[1750727028916,0.83331,2398.5,2398.1,4.04123]
[1750727029116,3.18762293,2398.6,2398.1,4.04123]
[1750727029117,2.23854,2398.4,2398.2,6.969]
[1750727029314,1.4052,2398.4,2398.2,6.969]
[1750727029521,1.60079,2398.6,2398.2,7.80241]
[1750727029719,0.83331,2398.5,2398.2,6.969]
[1750727030220,2.19641,2398.5,2398.2,6.969]
[1750727030815,0.83335,2398.4,2398.2,6.969]
[1750727031015,2.94925,2398.4,2398.2,6.969]
[1750727031416,1.3631,2398.3,2398.1,3.2078]
[1750727031718,1.58616,2398.4,2398.1,3.2078]
[1750727031916,0.7528,2398.4,2398.1,3.2078]
[1750727032117,0.7528,2398.4,2398.2,0.83339]
[1750727032617,0.7528,2398.4,2398.1,4.04122]
[1750727033122,0.7528,2398.4,2398.1,3.2078]
[1750727033123,1.58615,2398.4,2398.1,3.2078]
[1750727033322,0.8334,2398.3,2398.1,3.2078]
[1750727033522,2.2842,2398.3,2398.1,6.969]
[1750727034123,0.83341,2398.2,2398.1,6.969]
[1750727035020,2.28419,2398.3,2398.1,6.969]
[1750727035519,0.83341,2398.2,2398.1,6.969]
[1750727035720,2.19241,2398.2,2398.1,6.969]
[1750727036821,0.83345,2398.1,2397.9,6.949]
[1750727037031,0.83348,2398.0,2397.9,6.949]
[1750727037526,0.83352,2397.9,2397.8,3.2078]
[1750727037719,0.83352,2397.9,2397.8,10.1568]
[1750727038723,2.17272,2397.9,2397.8,10.1568]
[1750727039730,0.83362,2397.6,2397.4,48.042]
[1750727039925,0.83362,2397.6,2397.5,6.949]
[1750727040227,0.83365,2397.5,2397.4,48.042]
[1750727040524,0.83365,2397.5,2397.4,54.991]
[1750727040917,0.83371,2397.4,2397.2,3.9583]
[1750727041122,0.83369,2397.4,2397.3,6.949]
[1750727042524,2.27779,2397.4,2397.3,6.949]
[1750727043825,0.83372,2397.3,2397.2,6.95]
[1750727044018,2.27782,2397.3,2397.2,6.95]
[1750727044222,1.4441,2397.3,2396.8,3.2078]
[1750727044418,3.2078,2397.2,2396.8,14.84260576]
[1750727044623,3.2078,2397.2,2397.1,4.68480576]
[1750727044825,3.2078,2397.2,2396.9,5.46740576]
[1750727045130,3.2078,2397.2,2396.9,0.7826]
[1750727045131,0.83383,2397.0,2396.9,0.7826]
[1750727045325,0.83386,2396.9,2396.8,10.1578]
[1750727045529,0.83386,2396.9,2396.8,6.95]
[1750727046037,2.1006,2397.1,2396.8,6.95]
[1750727046227,0.83383,2397.0,2396.8,6.95]
[1750727046533,0.83386,2396.9,2396.8,6.95]
[1750727046732,0.83385,2397.0,2396.8,6.95]
[1750727047127,2.93442,2397.1,2396.8,6.95]
[1750727047325,2.93442,2397.1,2396.8,7.7839]
[1750727047726,0.7621,2397.1,2396.8,7.7839]
[1750727047930,3.2078,2397.2,2396.9,5.51863576]
[1750727048134,3.2078,2397.2,2397.0,0.83383]